Workbook

Sheet Market Data
B2: Curve Date | C2: 2024-05-13
B4: INR Curve
B5: Maturity Date | C5: Rate
B6: 2024-05-13 | C6: 0.06951772367
B7: 2024-06-14 | C7: 0.06951772367
B8: 2024-07-15 | C8: 0.06952509971
B9: 2024-08-14 | C9: 0.06912217131
B10: 2024-11-14 | C10: 0.06883987857
B11: 2025-02-14 | C11: 0.06835828197
B12: 2025-05-14 | C12: 0.06820359813
B13: 2026-05-14 | C13: 0.06661683965
B14: 2027-05-14 | C14: 0.06608446937
B15: 2028-05-15 | C15: 0.06576002673
B16: 2029-05-14 | C16: 0.06577849369
B17: 2031-05-14 | C17: 0.06628975713
B18: 2034-05-15 | C18: 0.06628089702
B19: 2099-02-14 | C19: 0.06628089702

Sheet Valuation
B2: Nominal | C2: Valuation Date | D2: Spot Date | E2: Option Maturity | F2: Swap Start Date | G2: Swap Maturity | H2: Strike | I2: Volatility | J2: Fixed Leg | K2: Float Leg
B3: 3000000000 | C3: 2024-05-13 | D3: 2024-05-14 | E3: 2024-05-24 | F3: 2024-05-27 | G3: 2026-05-27 | H3: 0.065 | I3: 0.105 | J3: Payer | K3: Receiver
B5: Step: Pricing underlying IRS
B7: DF (Val date to swap start) | C7: =(1+Interpo(F3,'Market Data'!$B$6:$B$19,'Market Data'!$C$6:$C$19))^(-YEARFRAC($C$3,F3,3)) -> 0.9974254855
B9: Fixed leg:
B11: Calculation start date | C11: Calculation end date | D11: Payment date | E11: Remaining capital | F11: Rate | G11: Yearfrac | H11: Undiscounted CFs | I11: DF - Val to Payment | J11: DF - Swap start to payment | K11: Discounted CFs
B12: 2024-05-27 | C12: 2024-11-27 | D12: =C12 -> 2024-11-27 | E12: =$B$3 -> 3000000000 | F12: =$H$3 -> 0.065 | G12: =YEARFRAC(B12,C12,3) -> 0.504109589 | H12: =F12*E12*G12 -> 98301369.86 | I12: =(1+Interpo(D12,'Market Data'!$B$6:$B$19,'Market Data'!$C$6:$C$19))^(-YEARFRAC($C$3,D12,3)) -> 0.964563621 | J12: =I12/$C$7 -> 0.9670533137 | K12: =H12*J12 -> 95062665.47
B13: 2024-11-27 | C13: 2025-05-27 | D13: =C13 -> 2025-05-27 | E13: =$B$3 -> 3000000000 | F13: =$H$3 -> 0.065 | G13: =YEARFRAC(B13,C13,3) -> 0.495890411 | H13: =F13*E13*G13 -> 96698630.14 | I13: =(1+Interpo(D13,'Market Data'!$B$6:$B$19,'Market Data'!$C$6:$C$19))^(-YEARFRAC($C$3,D13,3)) -> 0.933836325 | J13: =I13/$C$7 -> 0.9362467057 | K13: =H13*J13 -> 90533773.91
B14: 2025-05-27 | C14: 2025-11-27 | D14: 2025-11-27 | E14: 3000000000 | F14: 0.065 | G14: 0.504109589 | H14: 98301369.86 | I14: =(1+Interpo(D14,'Market Data'!$B$6:$B$19,'Market Data'!$C$6:$C$19))^(-YEARFRAC($C$3,D14,3)) -> 0.9043559792 | J14: 0.9066902664 | K14: 89128895.23
B15: 2025-11-27 | C15: 2026-05-27 | D15: 2026-05-27 | E15: 3000000000 | F15: 0.065 | G15: 0.495890411 | H15: 96698630.14 | I15: =(1+Interpo(D15,'Market Data'!$B$6:$B$19,'Market Data'!$C$6:$C$19))^(-YEARFRAC($C$3,D15,3)) -> 0.8768485111 | J15: 0.8791117972 | K15: 85008906.53
K16: =SUM(K12:K15) -> 359734241.1
B18: Float leg:
B20: Calculation start date | C20: Calculation end date | D20: Payment date | E20: Remaining capital | F20: DF Swap start to Start date | G20: DF Swap start to End Date | H20: Rate | I20: Yearfrac | J20: Undiscounted CFs | K20: DF - Val to Payment | L20: DF - Swap start to payment | M20: Discounted CFs
B21: 2024-05-27 | C21: 2024-11-27 | D21: =C21 -> 2024-11-27 | E21: =$B$3 -> 3000000000 | F21: =(1+Interpo(B21,'Market Data'!$B$6:$B$19,'Market Data'!$C$6:$C$19))^(-YEARFRAC($C$3,B21,3))/$C$7 -> 1 | G21: =(1+Interpo(C21,'Market Data'!$B$6:$B$19,'Market Data'!$C$6:$C$19))^(-YEARFRAC($C$3,C21,3))/$C$7 -> 0.9670533137 | H21: =(F21/G21-1)/YEARFRAC(B21,C21,3) -> 0.06758282853 | I21: =YEARFRAC(B21,C21,3) -> 0.504109589 | J21: =H21*E21*I21 -> 102207455.7 | K21: =(1+Interpo(D21,'Market Data'!$B$6:$B$19,'Market Data'!$C$6:$C$19))^(-YEARFRAC($C$3,D21,3)) -> 0.964563621 | L21: =K21/$C$7 -> 0.9670533137 | M21: =J21*L21 -> 98840058.77
B22: 2024-11-27 | C22: 2025-05-27 | D22: =C22 -> 2025-05-27 | E22: =$B$3 -> 3000000000 | F22: =(1+Interpo(B22,'Market Data'!$B$6:$B$19,'Market Data'!$C$6:$C$19))^(-YEARFRAC($C$3,B22,3))/$C$7 -> 0.9670533137 | G22: =(1+Interpo(C22,'Market Data'!$B$6:$B$19,'Market Data'!$C$6:$C$19))^(-YEARFRAC($C$3,C22,3))/$C$7 -> 0.9362467057 | H22: =(F22/G22-1)/YEARFRAC(B22,C22,3) -> 0.06635411637 | I22: =YEARFRAC(B22,C22,3) -> 0.495890411 | J22: =H22*E22*I22 -> 98713110.11 | K22: =(1+Interpo(D22,'Market Data'!$B$6:$B$19,'Market Data'!$C$6:$C$19))^(-YEARFRAC($C$3,D22,3)) -> 0.933836325 | L22: =K22/$C$7 -> 0.9362467057 | M22: =J22*L22 -> 92419824.15
B23: 2025-05-27 | C23: 2025-11-27 | D23: 2025-11-27 | E23: 3000000000 | F23: =(1+Interpo(B23,'Market Data'!$B$6:$B$19,'Market Data'!$C$6:$C$19))^(-YEARFRAC($C$3,B23,3))/$C$7 -> 0.9362467057 | G23: =(1+Interpo(C23,'Market Data'!$B$6:$B$19,'Market Data'!$C$6:$C$19))^(-YEARFRAC($C$3,C23,3))/$C$7 -> 0.9066902664 | H23: 0.06466483902 | I23: =YEARFRAC(B23,C23,3) -> 0.504109589 | J23: =H23*E23*I23 -> 97794496.28 | K23: =(1+Interpo(D23,'Market Data'!$B$6:$B$19,'Market Data'!$C$6:$C$19))^(-YEARFRAC($C$3,D23,3)) -> 0.9043559792 | L23: 0.9066902664 | M23: 88669317.88
B24: 2025-11-27 | C24: 2026-05-27 | D24: 2026-05-27 | E24: 3000000000 | F24: =(1+Interpo(B24,'Market Data'!$B$6:$B$19,'Market Data'!$C$6:$C$19))^(-YEARFRAC($C$3,B24,3))/$C$7 -> 0.9066902664 | G24: =(1+Interpo(C24,'Market Data'!$B$6:$B$19,'Market Data'!$C$6:$C$19))^(-YEARFRAC($C$3,C24,3))/$C$7 -> 0.8791117972 | H24: 0.06326162417 | I24: =YEARFRAC(B24,C24,3) -> 0.495890411 | J24: =H24*E24*I24 -> 94112498.43 | K24: =(1+Interpo(D24,'Market Data'!$B$6:$B$19,'Market Data'!$C$6:$C$19))^(-YEARFRAC($C$3,D24,3)) -> 0.8768485111 | L24: 0.8791117972 | M24: 82735407.63
M25: =SUM(M21:M24) -> 362664608.4
B27: NPV of the swap | C27: =-K16+M25 -> 2930367.289
B29: Step: Computing swap annuity factor
B31: Swap Annuity Factor | C31: =SUMPRODUCT(G12:G15,I12:I15) -> 1.840041539
B33: Step: Computing fair forward rate
B35: Fair forward rate (using formula) | C35: =SUMPRODUCT(H21:H24,I21:I24,K21:K24)/C31 -> 0.06552948497
B37: Fair forward rate (using swap valuation) | C37: 0.06552948497
B38: Diff | C38: =C37-C35 -> 0
B40: Fixed leg:
B42: Calculation start date | C42: Calculation end date | D42: Payment date | E42: Remaining capital | F42: Rate | G42: Yearfrac | H42: Undiscounted CFs | I42: DF - Val to Payment | J42: DF - Swap start to payment | K42: Discounted CFs
B43: 2024-05-27 | C43: 2024-11-27 | D43: =C43 -> 2024-11-27 | E43: =$B$3 -> 3000000000 | F43: =$C$37 -> 0.06552948497 | G43: =YEARFRAC(B43,C43,3) -> 0.504109589 | H43: =F43*E43*G43 -> 99102125.21 | I43: =(1+Interpo(D43,'Market Data'!$B$6:$B$19,'Market Data'!$C$6:$C$19))^(-YEARFRAC($C$3,D43,3)) -> 0.964563621 | J43: =I43/$C$7 -> 0.9670533137 | K43: =H43*J43 -> 95837038.59
B44: 2024-11-27 | C44: 2025-05-27 | D44: =C44 -> 2025-05-27 | E44: =$B$3 -> 3000000000 | F44: =$C$37 -> 0.06552948497 | G44: =YEARFRAC(B44,C44,3) -> 0.495890411 | H44: =F44*E44*G44 -> 97486329.69 | I44: =(1+Interpo(D44,'Market Data'!$B$6:$B$19,'Market Data'!$C$6:$C$19))^(-YEARFRAC($C$3,D44,3)) -> 0.933836325 | J44: =I44/$C$7 -> 0.9362467057 | K44: =H44*J44 -> 91271255.03
B45: 2025-05-27 | C45: 2025-11-27 | D45: 2025-11-27 | E45: 3000000000 | F45: 0.06552948497 | G45: 0.504109589 | H45: 99102125.21 | I45: =(1+Interpo(D45,'Market Data'!$B$6:$B$19,'Market Data'!$C$6:$C$19))^(-YEARFRAC($C$3,D45,3)) -> 0.9043559792 | J45: 0.9066902664 | K45: 89854932.31
B46: 2025-11-27 | C46: 2026-05-27 | D46: 2026-05-27 | E46: 3000000000 | F46: 0.06552948497 | G46: 0.495890411 | H46: 97486329.69 | I46: =(1+Interpo(D46,'Market Data'!$B$6:$B$19,'Market Data'!$C$6:$C$19))^(-YEARFRAC($C$3,D46,3)) -> 0.8768485111 | J46: 0.8791117972 | K46: 85701382.5
K47: =SUM(K43:K46) -> 362664608.4
B49: Float leg:
B51: Calculation start date | C51: Calculation end date | D51: Payment date | E51: Remaining capital | F51: DF Swap start to Start date | G51: DF Swap start to End Date | H51: Rate | I51: Yearfrac | J51: Undiscounted CFs | K51: DF - Val to Payment | L51: DF - Swap start to payment | M51: Discounted CFs
B52: 2024-05-27 | C52: 2024-11-27 | D52: =C52 -> 2024-11-27 | E52: =$B$3 -> 3000000000 | F52: =(1+Interpo(B52,'Market Data'!$B$6:$B$19,'Market Data'!$C$6:$C$19))^(-YEARFRAC($C$3,B52,3))/$C$7 -> 1 | G52: =(1+Interpo(C52,'Market Data'!$B$6:$B$19,'Market Data'!$C$6:$C$19))^(-YEARFRAC($C$3,C52,3))/$C$7 -> 0.9670533137 | H52: =(F52/G52-1)/YEARFRAC(B52,C52,3) -> 0.06758282853 | I52: =YEARFRAC(B52,C52,3) -> 0.504109589 | J52: =H52*E52*I52 -> 102207455.7 | K52: =(1+Interpo(D52,'Market Data'!$B$6:$B$19,'Market Data'!$C$6:$C$19))^(-YEARFRAC($C$3,D52,3)) -> 0.964563621 | L52: =K52/$C$7 -> 0.9670533137 | M52: =J52*L52 -> 98840058.77
B53: 2024-11-27 | C53: 2025-05-27 | D53: =C53 -> 2025-05-27 | E53: =$B$3 -> 3000000000 | F53: =(1+Interpo(B53,'Market Data'!$B$6:$B$19,'Market Data'!$C$6:$C$19))^(-YEARFRAC($C$3,B53,3))/$C$7 -> 0.9670533137 | G53: =(1+Interpo(C53,'Market Data'!$B$6:$B$19,'Market Data'!$C$6:$C$19))^(-YEARFRAC($C$3,C53,3))/$C$7 -> 0.9362467057 | H53: =(F53/G53-1)/YEARFRAC(B53,C53,3) -> 0.06635411637 | I53: =YEARFRAC(B53,C53,3) -> 0.495890411 | J53: =H53*E53*I53 -> 98713110.11 | K53: =(1+Interpo(D53,'Market Data'!$B$6:$B$19,'Market Data'!$C$6:$C$19))^(-YEARFRAC($C$3,D53,3)) -> 0.933836325 | L53: =K53/$C$7 -> 0.9362467057 | M53: =J53*L53 -> 92419824.15
B54: 2025-05-27 | C54: 2025-11-27 | D54: 2025-11-27 | E54: 3000000000 | F54: =(1+Interpo(B54,'Market Data'!$B$6:$B$19,'Market Data'!$C$6:$C$19))^(-YEARFRAC($C$3,B54,3))/$C$7 -> 0.9362467057 | G54: =(1+Interpo(C54,'Market Data'!$B$6:$B$19,'Market Data'!$C$6:$C$19))^(-YEARFRAC($C$3,C54,3))/$C$7 -> 0.9066902664 | H54: 0.06466483902 | I54: =YEARFRAC(B54,C54,3) -> 0.504109589 | J54: =H54*E54*I54 -> 97794496.28 | K54: =(1+Interpo(D54,'Market Data'!$B$6:$B$19,'Market Data'!$C$6:$C$19))^(-YEARFRAC($C$3,D54,3)) -> 0.9043559792 | L54: 0.9066902664 | M54: 88669317.88
B55: 2025-11-27 | C55: 2026-05-27 | D55: 2026-05-27 | E55: 3000000000 | F55: =(1+Interpo(B55,'Market Data'!$B$6:$B$19,'Market Data'!$C$6:$C$19))^(-YEARFRAC($C$3,B55,3))/$C$7 -> 0.9066902664 | G55: =(1+Interpo(C55,'Market Data'!$B$6:$B$19,'Market Data'!$C$6:$C$19))^(-YEARFRAC($C$3,C55,3))/$C$7 -> 0.8791117972 | H55: 0.06326162417 | I55: =YEARFRAC(B55,C55,3) -> 0.495890411 | J55: =H55*E55*I55 -> 94112498.43 | K55: =(1+Interpo(D55,'Market Data'!$B$6:$B$19,'Market Data'!$C$6:$C$19))^(-YEARFRAC($C$3,D55,3)) -> 0.8768485111 | L55: 0.8791117972 | M55: 82735407.63
M56: =SUM(M52:M55) -> 362664608.4
B58: NPV of the swap | C58: =-K47+M56 -> 0
B60: Step: Swaption valuation
B62: Calculation | C62: Notation | D62: Value
B63: Annuity factor | C63: A(t) | D63: =C31 -> 1.840041539
B64: Fair forward rate | C64: S(t) | D64: =C35 -> 0.06552948497
B65: Nominal | C65: Notation | D65: =B3 -> 3000000000
B66: Strike | C66: K | D66: =H3 -> 0.065
B67: Volatility | C67: sigma | D67: =I3 -> 0.105
B68: Valuation date | C68: t | D68: =C3 -> 2024-05-13
B69: Option maturity | C69: T | D69: =E3 -> 2024-05-24
B70: Yearfrac | C70: (T-t) | D70: =YEARFRAC(D68,D69,3) -> 0.0301369863
B72: d1 | C72: =LN(D64/D66)/(D67*SQRT(D70))+0.5*D67*SQRT(D70) -> 0.4541941076
B73: d2 | C73: =C72-D67*SQRT(D70) -> 0.4359660996
B74: N(d1) | C74: =_xlfn.NORM.S.DIST(C72,TRUE) -> 0.6751554381
B75: N(d2) | C75: =_xlfn.NORM.S.DIST(C73,TRUE) -> 0.6685693371
B76: N'(d1) | C76: =_xlfn.NORM.S.DIST(C72,FALSE) -> 0.3598439992
B77: N'(d2) | C77: =_xlfn.NORM.S.DIST(C73,FALSE) -> 0.3627752606
B78: N(-d1) | C78: =_xlfn.NORM.S.DIST(-C72,TRUE) -> 0.3248445619
B79: N(-d2) | C79: =_xlfn.NORM.S.DIST(-C73,TRUE) -> 0.3314306629
B81: NPV for swaption | C81: =D65*D63*(D64*C74-D66*C75) -> 4336506.256
B83: Step: Greek computation
B85: Greek | C85: Independent value (as %) | D85: Independent Value
B86: Delta | C86: =C74*100 -> 67.51554381 | D86: =C86%*B3 -> 2025466314
B87: Gamma | C87: =C76/(D64*D67*SQRT(D70)) -> 301.2578004 | D87: =C87%*B3 -> 9037734011
B88: Vega | C88: =D64*SQRT(D70)*C76*D65/100*D63 -> 225969.4933 | D88: =C88 -> 225969.4933
